bitfinex-derivatives/quotes_SOLF0:USTF0_20250907
["timestamp","ask_amount","ask_price","bid_price","bid_amount"]
[1757274355074,13.7116007,202.87,202.8,3.06262194]
[1757274355266,8.17,202.87,202.8,3.06262194]
[1757274355476,8.17,202.87,202.8,8.20262194]
[1757274355876,13.7116007,202.87,202.8,8.20262194]
[1757274356273,8.17,202.87,202.8,8.20262194]
[1757274356667,5.5416007,202.88,202.77,336.48]
[1757274356867,8.17,202.85,202.78,3.06262194]
[1757274357066,13.7116007,202.85,202.78,3.06262194]
[1757274357367,8.17,202.85,202.78,3.06262194]
[1757274361075,8.17,202.85,202.82,5.14]
[1757274362176,5.5416007,202.89,202.82,5.14]
[1757274362376,8.17,202.88,202.82,5.14]
[1757274364382,8.17,202.88,202.81,3.06262194]
[1757274364578,13.7116007,202.88,202.81,3.06262194]
[1757274364782,8.17,202.86,202.81,3.06262194]
[1757274368781,7.91,202.87,202.81,3.06262194]
[1757274373175,7.91,202.87,202.78,5.14]
[1757274373383,5.5416007,202.87,202.78,5.14]
[1757274373581,7.91,202.86,202.78,5.14]
[1757274377885,7.91,202.86,202.8,3.06262194]
[1757274378087,7.91,202.86,202.84,5.15]
[1757274378288,7.91,202.9,202.84,5.15]
[1757274378686,7.91,202.9,202.86,3.06262194]
[1757274378888,7.91,202.93,202.87,5.15]
[1757274385499,7.91,202.96,202.9,5.15]
[1757274390391,5.5416007,202.97,202.92,3.06262194]
[1757274390692,8.28653637,203.0,202.93,5.15]
[1757274390693,7.91,202.99,202.93,5.15]
[1757274395890,7.91,202.99,202.86,4.4361]
[1757274396194,8.22,202.97,202.89,5.13]
[1757274398699,13.7616007,202.97,202.89,5.13]
[1757274399101,8.22,202.97,202.89,5.13]
[1757274399401,8.22,202.96,202.86,5.13]
[1757274399599,13.7616007,202.96,202.86,5.13]
[1757274409205,5.5416007,202.95,202.86,5.13]
[1757274409505,8.22,202.94,202.86,5.13]
[1757274414299,8.22,202.94,202.9,1.95968946]
[1757274415908,5.5416007,202.95,202.9,1.95968946]
[1757274416307,8.22,202.93,202.9,1.95968946]
[1757274416512,5.5416007,202.94,202.9,1.95968946]
[1757274416708,8.22,202.93,202.9,1.95968946]
[1757274417610,5.5416007,202.94,202.9,1.95968946]
[1757274418003,8.22,202.93,202.9,1.95968946]
[1757274418202,5.5416007,202.94,202.9,1.95968946]
[1757274418510,5.5416007,202.95,202.9,1.95968946]
[1757274418711,8.22,202.94,202.88,5.13]
[1757274418913,8.22,202.94,202.9,1.95968946]
[1757274419112,5.5416007,202.95,202.85,107.2839629]
[1757274419113,8.22,202.95,202.93,5.13]
[1757274419311,8.22,202.95,202.94,1.95968946]
[1757274419513,5.5416007,202.99,202.94,1.95968946]
[1757274419714,8.22,202.98,202.85,107.2839629]
[1757274420012,8.22,202.98,202.97,1.95968946]
[1757274422124,13.7616007,203.0,202.98,5.13]
[1757274422327,5.5416007,203.0,202.99,7.08968946]
[1757274422626,8.22,203.02,202.99,7.08968946]
[1757274422823,8.22,203.02,203.01,1.95968946]
[1757274434035,8.22,203.02,202.99,5.13]
[1757274434336,5.5416007,203.05,203.01,1.95968946]
[1757274434637,7.65,203.04,203.01,1.95968946]
[1757274434837,5.5416007,203.05,203.01,1.95968946]
[1757274435234,7.65,203.04,203.01,1.95968946]
[1757274435436,5.5416007,203.05,203.01,1.95968946]
[1757274435935,7.65,203.04,203.01,1.95968946]
[1757274436451,5.5416007,203.05,203.01,1.95968946]
[1757274436931,7.65,203.04,203.01,1.95968946]
[1757274437337,5.5416007,203.05,203.01,1.95968946]
[1757274437734,7.65,203.04,203.01,1.95968946]
[1757274438546,7.65,203.05,203.01,1.95968946]
[1757274439937,13.1916007,203.05,203.01,1.95968946]
[1757274441544,13.1916007,203.05,202.99,5.13]
[1757274441742,13.1916007,203.05,203.0,1.95968946]
[1757274444048,13.1916007,203.05,202.96,5.14]
[1757274444248,13.1916007,203.05,202.99,1.95968946]
[1757274445340,13.1916007,203.03,202.97,1.95968946]
[1757274446446,7.65,203.01,202.95,1.95968946]
[1757274447252,13.1916007,203.01,202.95,1.95968946]
[1757274449952,7.65,203.01,202.97,1.95968946]
[1757274450156,5.5416007,203.03,202.97,1.95968946]
[1757274450358,7.65,203.02,202.97,1.95968946]
[1757274450557,5.5416007,203.03,202.97,1.95968946]
[1757274450757,13.1916007,203.03,202.97,7.09968946]
[1757274452463,7.65,203.02,202.99,1.95968946]
[1757274452659,5.5416007,203.02,202.99,1.95968946]
[1757274452861,7.65,203.02,202.99,1.95968946]
[1757274453362,7.65,203.01,202.99,1.95968946]
[1757274454159,5.5416007,203.02,202.99,1.95968946]
[1757274454469,5.5416007,203.01,202.99,1.95968946]
[1757274454655,7.65,203.0,202.99,1.95968946]
[1757274455060,5.5416007,203.01,202.96,5.13]
[1757274455257,5.5416007,203.01,202.97,1.95968946]
[1757274456467,5.5416007,203.0,202.97,1.95968946]
[1757274456860,7.95,202.99,202.97,1.95968946]
[1757274457065,5.5416007,203.0,202.97,1.95968946]
[1757274457462,7.95,202.99,202.97,1.95968946]
[1757274458363,5.5416007,203.0,202.97,1.95968946]
[1757274458566,7.95,202.98,202.97,1.95968946]
[1757274460369,7.95,202.97,202.96,1.95968946]
[1757274461270,13.4916007,202.97,202.96,1.95968946]
[1757274465971,7.95,202.97,202.96,1.95968946]
[1757274466477,13.4916007,202.97,202.96,1.95968946]
[1757274466676,7.95,202.97,202.96,1.95968946]
[1757274467075,13.4916007,202.97,202.88,48.3]
[1757274467278,13.4916007,202.96,202.95,1.95968946]
[1757274467480,7.95,202.96,202.95,1.95968946]
[1757274468172,8.28653637,202.97,202.93,1.95968946]
[1757274468380,13.48081272,202.95,202.93,1.95968946]
[1757274468578,7.95,202.95,202.93,1.95968946]
[1757274468874,5.53081272,202.97,202.93,1.95968946]
[1757274469076,7.95,202.96,202.93,1.95968946]
[1757274469577,7.95,202.96,202.95,1.95968946]
[1757274471480,7.95,202.96,202.93,5.13]
[1757274471682,5.53081272,202.97,202.95,1.95968946]
[1757274471979,7.95,202.96,202.95,1.95968946]
[1757274475373,7.95,202.96,202.93,1.95968946]
[1757274476384,7.95,202.96,202.9,5.13]
[1757274477179,13.48081272,202.96,202.9,5.13]
[1757274477982,13.48081272,202.96,202.89,3.06130722]
[1757274478281,13.48081272,202.96,202.89,8.19130722]
[1757274478983,13.48081272,202.96,202.9,5.13]
[1757274481691,13.48081272,202.96,202.89,3.06130722]
[1757274484890,5.53081272,202.95,202.89,3.06130722]
[1757274486088,7.62,202.94,202.89,3.06130722]
[1757274486296,5.53081272,202.95,202.89,3.06130722]
[1757274486492,7.62,202.94,202.89,3.06130722]
[1757274486690,5.53081272,202.95,202.89,3.06130722]
[1757274486889,7.62,202.94,202.89,3.06130722]
[1757274487088,5.53081272,202.95,202.89,3.06130722]
[1757274487590,7.62,202.94,202.89,3.06130722]
[1757274487794,5.53081272,202.95,202.89,3.06130722]
[1757274487994,7.62,202.94,202.89,3.06130722]
[1757274488294,5.53081272,202.95,202.89,3.06130722]
[1757274488496,5.53081272,202.96,202.89,3.06130722]
[1757274488696,7.62,202.95,202.89,3.06130722]
[1757274488898,13.15081272,202.95,202.89,3.06130722]
[1757274489597,7.62,202.93,202.89,3.06130722]
[1757274489899,13.15081272,202.93,202.89,3.06130722]
[1757274491897,5.53081272,202.93,202.89,3.06130722]
[1757274492897,7.62,202.92,202.89,3.06130722]
[1757274493097,5.53081272,202.93,202.89,3.06130722]
[1757274493298,7.62,202.93,202.89,3.06130722]
[1757274493592,5.53081272,202.94,202.89,3.06130722]
[1757274493799,7.62,202.93,202.89,3.06130722]
[1757274494496,7.62,202.93,202.87,5.14]
[1757274494704,7.62,202.93,202.87,8.20130722]
[1757274497199,13.15081272,202.93,202.87,8.20130722]
[1757274497403,7.62,202.93,202.87,8.20130722]
[1757274498201,13.15081272,202.93,202.87,8.20130722]
[1757274498503,5.53081272,202.89,202.81,5.14]
[1757274498702,5.53081272,202.87,202.81,5.14]
[1757274498904,7.62,202.86,202.8,8.20130722]
[1757274501603,13.15081272,202.88,202.84,5.14]
[1757274501807,7.62,202.88,202.83,3.06130722]
[1757274502210,7.62,202.88,202.84,5.14]
[1757274502410,7.62,202.88,202.83,3.06130722]
[1757274502804,7.62,202.88,202.78,5.14]
[1757274503007,7.62,202.88,202.84,5.14]
[1757274503210,7.62,202.88,202.83,3.06130722]
[1757274503515,13.15081272,202.91,202.84,5.14]
[1757274503703,13.15081272,202.91,202.86,3.06130722]
[1757274503908,7.62,202.9,202.87,5.14]
[1757274504218,7.62,202.91,202.86,8.20130722]
[1757274504408,5.53081272,202.92,202.86,8.20130722]
[1757274504612,7.62,202.91,202.86,8.20130722]
[1757274505008,13.15081272,202.92,202.86,3.06130722]
[1757274508719,7.62,202.92,202.86,3.06130722]
[1757274518526,13.15081272,202.92,202.86,3.06130722]
[1757274521926,13.15081272,202.92,202.85,8.20130722]
[1757274526527,13.15081272,202.92,202.88,3.06130722]
[1757274526826,13.57081272,202.93,202.89,5.14]
[1757274527330,13.57081272,202.93,202.88,3.06130722]
[1757274527830,8.04,202.93,202.88,3.06130722]
[1757274528030,13.57081272,202.94,202.88,8.20130722]
[1757274529623,8.04,202.94,202.88,8.20130722]
[1757274530018,13.57081272,202.94,202.88,8.20130722]
[1757274530831,8.04,202.94,202.88,8.20130722]
[1757274537032,13.57081272,202.94,202.88,8.20130722]
[1757274538435,13.57081272,202.94,202.89,1.95963949]
[1757274538631,10.24617586,202.96,202.89,1.95963949]
[1757274538632,8.04,202.92,202.89,1.95963949]
[1757274538829,5.53081272,202.93,202.89,1.95963949]
[1757274539029,8.04,202.92,202.89,1.95963949]
[1757274539235,5.53081272,202.93,202.89,1.95963949]
[1757274539835,8.04,202.92,202.89,1.95963949]
[1757274540532,13.57081272,202.92,202.87,1.95963949]
[1757274544343,5.53081272,202.91,202.87,1.95963949]
[1757274545039,8.07,202.9,202.87,1.95963949]
[1757274545943,5.53081272,202.91,202.85,5.14]
[1757274546140,8.07,202.89,202.75,4.13217156]
[1757274546346,8.07,202.89,202.87,7.09963949]
[1757274547139,5.53081272,202.91,202.87,1.95963949]
[1757274547346,5.53081272,202.91,202.84,4.4364]
[1757274547347,5.53081272,202.93,202.9,7.09963949]
[1757274547547,8.07,202.92,202.9,7.09963949]
[1757274548548,13.60081272,202.92,202.9,7.09963949]
[1757274548746,13.60081272,202.92,202.91,4.43921433]
[1757274549046,5.53081272,202.92,202.9,1.95963949]
[1757274549248,13.60081272,202.92,202.9,1.95963949]
[1757274549653,8.07,202.91,202.9,1.95963949]
[1757274550153,13.60081272,202.91,202.9,1.95963949]
[1757274553552,8.07,202.9,202.89,1.95963949]
[1757274559851,8.07,202.93,202.9,5.14]
[1757274560059,5.53081272,202.94,202.91,1.95963949]
[1757274560359,8.07,202.92,202.91,1.95963949]
[1757274560961,8.07,202.92,202.87,5.14]
[1757274561261,5.53081272,202.93,202.9,1.95963949]
[1757274562155,8.07,202.92,202.9,1.95963949]
[1757274562960,5.53081272,202.93,202.9,1.95963949]
[1757274563558,8.07,202.92,202.9,1.95963949]
[1757274563756,5.53081272,202.93,202.9,1.95963949]
[1757274563960,8.07,202.92,202.9,1.95963949]
[1757274564960,8.07,202.92,202.9,7.09963949]
[1757274567662,5.53081272,202.93,202.9,1.95963949]
[1757274568258,8.07,202.92,202.9,1.95963949]
[1757274568460,5.53081272,202.93,202.9,1.95963949]
[1757274568661,8.07,202.92,202.9,1.95963949]
[1757274568858,5.53081272,202.93,202.9,1.95963949]
[1757274569258,8.07,202.92,202.9,1.95963949]
[1757274569456,5.53081272,202.93,202.9,1.95963949]
[1757274570257,8.07,202.92,202.9,1.95963949]
[1757274570665,5.53081272,202.93,202.9,1.95963949]
[1757274571066,8.07,202.92,202.9,1.95963949]
[1757274571265,5.53081272,202.93,202.9,1.95963949]
[1757274571462,8.07,202.92,202.9,1.95963949]
[1757274572162,8.07,202.92,202.9,7.09963949]
[1757274573865,5.53081272,202.94,202.9,1.95963949]
[1757274574169,8.07,202.93,202.9,1.95963949]
[1757274574569,5.53081272,202.94,202.9,1.95963949]
[1757274574868,8.07,202.93,202.88,5.15]
[1757274575069,5.53081272,202.94,202.91,1.95963949]
[1757274575965,7.55,202.93,202.91,1.95963949]
[1757274576165,5.53081272,202.94,202.91,1.95963949]
[1757274576871,7.55,202.93,202.91,1.95963949]
[1757274577375,5.53081272,202.94,202.91,1.95963949]
[1757274578469,7.55,202.93,202.91,1.95963949]
[1757274578666,5.53081272,202.94,202.9,1.95963949]
[1757274579269,7.55,202.93,202.9,7.09963949]
[1757274580472,5.53081272,202.94,202.9,1.95963949]
[1757274580873,7.55,202.93,202.9,1.95963949]
[1757274581376,5.53081272,202.94,202.9,1.95963949]
[1757274581670,7.55,202.93,202.9,1.95963949]
[1757274581871,5.53081272,202.94,202.9,1.95963949]
[1757274583273,7.55,202.93,202.9,1.95963949]
[1757274584170,5.53081272,202.94,202.9,1.95963949]
[1757274584576,7.55,202.93,202.9,1.95963949]
[1757274584773,5.53081272,202.94,202.9,1.95963949]
[1757274584974,7.55,202.93,202.9,1.95963949]
[1757274585277,5.53081272,202.94,202.9,1.95963949]
[1757274586978,7.55,202.93,202.9,1.95963949]
[1757274587877,5.53081272,202.94,202.9,1.95963949]
[1757274588378,7.55,202.93,202.9,1.95963949]
[1757274588575,13.08081272,202.93,202.9,1.95963949]
[1757274588782,5.53081272,202.93,202.9,1.95963949]
[1757274589282,7.55,202.91,202.9,1.95963949]
[1757274595882,7.55,202.91,202.85,4.4364]
[1757274596079,7.55,202.91,202.9,1.95963949]
[1757274598278,7.55,202.91,202.87,3.06175356]
[1757274598583,13.08081272,202.91,202.88,5.14]
[1757274599279,5.53081272,202.91,202.88,5.14]
[1757274599582,7.55,202.9,202.88,5.14]
[1757274600180,5.53081272,202.91,202.88,5.14]
[1757274600378,5.53081272,202.91,202.87,3.06175356]
[1757274600581,5.53081272,202.91,202.88,5.14]
[1757274601077,5.53081272,202.91,202.87,3.06175356]
[1757274601279,5.53081272,202.92,202.87,3.06175356]
[1757274601475,5.53081272,202.92,202.87,7.49765356]
[1757274601684,13.08081272,202.92,202.89,5.14]
[1757274601979,5.53081272,202.92,202.89,5.14]
[1757274602282,7.55,202.91,202.89,5.14]
[1757274603486,5.53081272,202.91,202.86,3.06175356]
[1757274603684,5.53081272,202.91,202.87,5.14]
[1757274604579,7.55,202.9,202.87,5.14]
[1757274604884,5.53081272,202.91,202.87,5.14]
[1757274605280,7.52,202.9,202.87,5.14]
[1757274605476,5.53081272,202.91,202.87,5.14]
[1757274605677,5.53081272,202.91,202.82,4.437]
[1757274605881,5.53081272,202.9,202.85,8.20175356]
[1757274606279,7.52,202.89,202.85,8.20175356]
[1757274606687,7.52,202.89,202.86,5.14]
[1757274606880,7.52,202.89,202.85,3.06175356]
[1757274607184,5.53081272,202.9,202.85,8.20175356]
[1757274607485,7.52,202.89,202.85,8.20175356]
[1757274607680,5.53081272,202.9,202.85,8.20175356]
[1757274608188,7.52,202.89,202.85,8.20175356]
[1757274608378,5.53081272,202.9,202.85,8.20175356]
[1757274608579,7.52,202.89,202.85,8.20175356]
[1757274608784,7.52,202.91,202.85,8.20175356]
[1757274616692,5.53081272,202.92,202.89,5.14]
[1757274616886,13.05081272,202.92,202.89,5.14]
[1757274617491,7.52,202.91,202.89,5.14]
[1757274618890,5.53081272,202.94,202.89,5.14]
[1757274619186,7.52,202.93,202.88,8.20175356]
[1757274619588,5.53081272,202.94,202.88,8.20175356]
[1757274620090,7.52,202.93,202.88,8.20175356]
[1757274622292,5.53081272,202.94,202.88,8.20175356]
[1757274623092,7.52,202.93,202.88,3.06175356]
[1757274623492,7.52,202.93,202.88,8.20175356]
[1757274623692,5.53081272,202.94,202.89,5.14]
[1757274624193,5.53081272,202.94,202.88,3.06175356]
[1757274624383,5.53081272,202.94,202.9,5.14]
[1757274624588,7.52,202.93,202.9,5.14]
[1757274624984,5.53081272,202.94,202.9,5.14]
[1757274625187,7.52,202.93,202.9,5.14]
[1757274625482,5.53081272,202.94,202.9,5.14]
[1757274625685,7.52,202.93,202.9,5.14]
[1757274625882,7.52,202.93,202.87,8.20175356]
[1757274628596,13.05081272,202.93,202.87,8.20175356]
[1757274638607,5.53081272,202.92,202.87,8.20175356]
[1757274638901,7.99,202.91,202.88,5.13]
[1757274646407,5.53081272,202.93,202.88,5.13]
[1757274646612,5.53081272,202.93,202.91,5.13]
[1757274647310,5.53081272,202.94,202.9,3.06175356]
[1757274647508,5.53081272,202.96,202.91,4.38497641]
[1757274647709,5.53081272,202.96,202.93,5.13]
[1757274648012,5.53081272,202.96,202.94,9.51497641]
[1757274648315,13.52081272,202.96,202.95,4.38497641]
[1757274648607,7.99,202.96,202.91,8.19175356]
[1757274648808,5.53081272,202.97,202.91,3.06175356]
[1757274649014,7.99,202.96,202.91,8.19175356]
[1757274649313,7.99,202.97,202.91,8.19175356]
[1757274654608,7.99,202.97,202.92,4.37923093]
[1757274654808,7.99,202.97,202.93,4.37923093]
[1757274655113,7.99,202.97,202.94,4.37923093]
[1757274655310,7.99,202.97,202.91,8.19175356]
[1757274655511,7.99,202.97,202.92,4.37890525]
[1757274655712,7.99,202.97,202.91,8.19175356]
[1757274660417,7.99,202.98,202.94,1.95867065]
[1757274662017,7.99,202.98,202.96,1.95867065]
[1757274662419,5.53081272,203.01,202.96,1.95867065]
[1757274662621,7.99,203.0,202.97,6.37015924]
[1757274662813,7.99,203.0,202.99,1.95867065]
[1757274663019,7.99,203.02,203.0,5.13]
[1757274663218,7.99,203.02,203.01,4.40956778]
[1757274663414,7.99,203.04,202.99,7.08867065]
[1757274663623,7.99,203.04,203.0,4.40746163]
[1757274663821,7.99,203.04,202.99,7.08867065]
[1757274664024,7.99,203.04,203.0,4.40743587]
[1757274664216,7.99,203.04,202.99,7.08867065]
[1757274664422,7.99,203.04,202.94,5.13]
[1757274664623,13.52081272,203.04,202.98,1.95867065]
[1757274666626,13.52081272,203.04,202.94,5.13]
[1757274666627,8.19,203.02,202.96,1.95867065]
[1757274666827,8.19,203.02,202.97,4.40508211]
[1757274667029,8.19,203.02,202.98,4.40508211]
[1757274667228,8.19,203.02,202.96,1.95867065]
[1757274667424,8.19,203.02,202.97,4.4043998]
[1757274667629,8.19,203.02,202.96,1.95867065]
[1757274667929,8.19,203.02,202.97,4.40457748]
[1757274668122,8.19,203.02,202.96,1.95867065]
[1757274668323,8.19,203.02,202.97,4.40450209]
[1757274668629,8.19,203.02,202.96,1.95867065]
[1757274675232,8.19,203.02,202.94,5.13]
[1757274675427,8.19,203.02,202.95,1.95867065]
[1757274676128,13.72081272,203.02,202.95,1.95867065]
[1757274677333,1.95867065,203.01,202.95,1.95867065]
[1757274677730,8.19,203.0,202.95,1.95867065]
[1757274677932,1.95867065,203.01,202.95,1.95867065]
[1757274678329,8.19,203.0,202.95,1.95867065]
[1757274678527,1.95867065,203.01,202.95,1.95867065]
[1757274679239,8.19,203.0,202.95,1.95867065]
[1757274679434,1.95867065,203.01,202.95,7.08867065]
[1757274680235,1.95867065,203.01,202.96,4.41013303]
[1757274680434,5.53081272,203.02,202.95,7.08867065]
[1757274680636,8.19,203.01,202.96,4.41026359]
[1757274680830,8.19,203.01,202.95,7.08867065]
[1757274681026,8.19,203.01,202.96,4.41026359]
[1757274681230,8.19,203.01,202.95,7.08867065]
[1757274681434,8.19,203.01,202.96,4.41056679]
[1757274681636,8.19,203.01,202.95,7.08867065]
[1757274681835,8.19,203.01,202.96,4.4107051]
[1757274682033,8.19,203.01,202.95,7.08867065]
[1757274682233,8.19,203.01,202.96,4.4107051]
[1757274682433,8.19,203.01,202.95,7.08867065]
[1757274682633,8.19,203.01,202.96,4.41120793]
[1757274682936,8.19,203.01,202.95,7.08867065]
[1757274683137,8.19,203.01,202.96,4.41120793]
[1757274683436,8.19,203.01,202.95,7.08867065]
[1757274683637,8.19,203.01,202.96,4.41177708]
[1757274683836,8.19,203.01,202.95,7.08867065]
[1757274684038,8.19,203.01,202.96,4.41177708]
[1757274684244,8.19,203.01,202.95,7.08867065]
[1757274684438,8.19,203.01,202.96,4.41264393]
[1757274684641,8.19,203.01,202.95,7.08867065]
[1757274684840,8.19,203.01,202.96,4.41264497]
[1757274685041,8.19,203.01,202.95,7.08867065]
[1757274685231,8.19,203.01,202.96,4.41264497]
[1757274685437,8.19,203.01,202.95,7.08867065]
[1757274685638,8.19,203.01,202.96,4.41312174]
[1757274685837,8.19,203.01,202.95,7.08867065]
[1757274686038,13.72081272,203.01,202.96,4.41289505]
[1757274686238,13.72081272,203.01,202.95,7.08867065]
[1757274686438,13.72081272,203.01,202.96,4.41375856]
[1757274686641,13.72081272,203.01,202.95,7.08867065]
[1757274686834,13.72081272,203.01,202.96,4.41353348]
[1757274687037,13.72081272,203.01,202.95,7.08867065]
[1757274687238,13.72081272,203.01,202.96,4.41408833]
[1757274687440,13.72081272,203.01,202.95,7.08867065]
[1757274687642,13.72081272,203.01,202.96,4.41480432]
[1757274687838,13.72081272,203.01,202.95,7.08867065]
[1757274688034,13.72081272,203.01,202.96,4.41480432]
[1757274688244,13.72081272,203.01,202.95,7.08867065]
[1757274688545,13.72081272,203.01,202.96,4.41577384]
[1757274688744,5.53081272,203.0,202.97,4.41577384]
[1757274689043,8.19,202.99,202.95,7.08867065]
[1757274689240,5.53081272,203.0,202.96,4.41644917]
[1757274689440,5.53081272,203.0,202.95,7.08867065]
[1757274689745,8.19,202.99,202.96,4.41735767]
[1757274689945,5.53081272,203.0,202.95,7.08867065]
[1757274690241,8.19,202.99,202.96,4.41735767]
[1757274690444,8.19,202.99,202.97,4.41735767]
[1757274690646,8.19,202.99,202.95,7.08867065]
[1757274690845,5.53081272,203.0,202.96,4.4188865]
[1757274691043,5.53081272,203.0,202.98,5.13]
[1757274691245,5.53081272,203.0,202.97,1.95867065]
[1757274691645,5.53081272,203.0,202.98,5.13]
[1757274692047,5.53081272,203.0,202.97,1.95867065]
[1757274692348,5.53081272,203.0,202.98,5.13]
[1757274695053,5.53081272,203.0,202.97,1.95867065]
[1757274695352,5.53081272,203.0,202.98,5.13]
[1757274695750,13.38081272,203.0,202.98,5.13]
[1757274697355,7.85,202.99,202.97,1.95867065]
[1757274697656,7.85,202.99,202.97,7.08867065]
[1757274697857,7.85,202.99,202.97,5.13]
[1757274700154,9.80867065,203.0,202.91,5.13]
[1757274700352,5.53081272,202.99,202.93,1.95867065]
[1757274700558,7.85,202.97,202.93,7.08867065]
[1757274701063,5.53081272,202.98,202.93,7.08867065]
[1757274701256,7.85,202.97,202.93,7.08867065]
[1757274702162,5.53081272,202.98,202.93,7.08867065]
[1757274702558,7.85,202.97,202.93,7.08867065]
[1757274702960,7.48948337,202.98,202.93,7.08867065]
[1757274703155,7.85,202.97,202.93,7.08867065]
[1757274703656,7.85,202.97,202.94,5.13]
[1757274703857,7.48948337,202.98,202.94,5.13]
[1757274704760,7.85,202.97,202.94,5.13]
[1757274705159,7.48948337,202.98,202.94,5.13]
[1757274705359,7.85,202.97,202.94,5.13]
[1757274706162,7.48948337,202.98,202.94,5.13]
[1757274706556,7.85,202.97,202.94,5.13]
[1757274708062,5.53081272,202.98,202.94,5.13]
[1757274708259,5.53081272,202.98,202.95,1.95867065]
[1757274708455,5.53081272,202.99,202.97,1.95867065]
[1757274708664,13.38081272,203.01,202.98,5.13]
[1757274708858,7.85,203.0,202.98,5.13]
[1757274712262,13.38081272,203.0,202.98,5.13]
[1757274712767,5.53081272,203.0,202.97,1.95867065]
[1757274712969,5.53081272,203.01,202.97,1.95867065]
[1757274713468,13.38081272,203.01,202.97,1.95867065]
[1757274713668,13.38081272,203.01,202.98,5.13]
[1757274714970,7.85,203.0,202.98,5.13]
[1757274719774,5.53081272,203.01,202.98,5.13]
[1757274720175,5.53081272,203.01,202.97,1.95867065]
[1757274720378,5.53081272,203.01,202.96,3.05915833]
[1757274720572,13.38081272,203.01,202.97,5.13]
[1757274720777,5.53081272,203.02,202.97,5.13]
[1757274720978,5.53081272,203.02,202.96,3.05915833]
[1757274721179,7.85,203.01,202.98,5.13]
[1757274721378,7.85,203.01,202.99,4.52865072]
[1757274721573,7.85,203.01,203.0,4.52865072]
[1757274723082,7.85,203.01,202.98,5.13]
[1757274723283,5.53081272,203.05,203.0,5.13]
[1757274723482,7.85,203.06,203.04,5.13]
[1757274726478,5.53081272,203.08,203.03,3.05915833]
[1757274726678,8.21,203.1,203.08,5.13]
[1757274727285,8.21,203.11,203.07,3.05915833]
[1757274727484,5.53081272,203.12,203.07,3.05915833]
[1757274727683,8.21,203.11,203.05,5.13]
[1757274727879,5.53081272,203.12,203.06,3.05915833]
[1757274728386,13.74081272,203.12,203.06,8.18915833]
[1757274728586,5.53081272,203.11,203.06,8.18915833]
[1757274728883,8.21,203.1,203.07,5.13]
[1757274730077,8.21,203.1,203.06,3.05915833]
[1757274730276,8.21,203.1,203.07,5.13]
[1757274730582,8.21,203.1,203.05,3.05915833]
[1757274730785,5.53081272,203.11,203.05,3.05915833]
[1757274730984,8.21,203.1,203.05,3.05915833]
[1757274731581,5.53081272,203.11,203.05,3.05915833]
[1757274731782,8.21,203.1,203.05,3.05915833]
[1757274732179,5.53081272,203.11,203.05,3.05915833]
[1757274733285,8.21,203.1,203.05,3.05915833]
[1757274733590,8.21,203.09,203.05,3.05915833]
[1757274733991,8.21,203.09,203.05,8.18915833]
[1757274734185,8.21,203.09,203.05,3.05915833]
[1757274734585,5.53081272,203.1,203.05,3.05915833]
[1757274735085,8.21,203.09,203.05,3.05915833]
[1757274735290,5.53081272,203.1,203.05,3.05915833]
[1757274735689,8.21,203.09,203.05,3.05915833]
[1757274735886,5.53081272,203.1,203.05,3.05915833]
[1757274736088,8.21,203.09,203.05,3.05915833]
[1757274736692,5.53081272,203.1,203.05,8.18915833]
[1757274737498,5.53081272,203.1,203.05,3.05915833]
[1757274738591,5.53081272,203.12,203.05,3.05915833]
[1757274738795,8.21,203.11,203.05,3.05915833]
[1757274740898,5.53081272,203.13,203.06,5.13]
[1757274740899,8.21,203.12,203.06,5.13]
[1757274742504,8.21,203.12,203.07,3.05915833]
[1757274742896,8.21,203.12,203.08,5.13]
[1757274743097,5.53081272,203.15,203.08,5.13]
[1757274743302,8.21,203.14,203.08,5.13]
[1757274750310,13.74081272,203.14,203.08,5.13]